Cogmind - Beta 17.1 @@@ ROGUE MODE // 2026.09.01 @ 20:31:08 Player: Lazz Result: Destroyed by S-27 Virus with Autogun Performance ------------- Evolutions (5) 2500 Regions Visited (13) 2600 Robots Destroyed (82) 410 Value Destroyed (3318) 3318 Prototype IDs (14) 280 Alien Tech Used (0) 0 Bonus (1100) 1100 TOTAL SCORE: 10208 Bonus ------- Entered DSFs 500 Met Data Miner 300 Acquired ECA 300 Cogmind --------- Core Integrity 0/1000 Matter 300/300 Energy 98/100 System Corruption 5% Temperature Cool (0) Movement Core (50) Location -5/Upper Caves Parts ------- > --- POWER (2) -------- (None) > --- PROPULSION (5) --- (None) > --- UTILITY (7) ------ Improved Target Analyzer > --- WEAPON (3) ------- (None) > --- INVENTORY (5) ---- Light Nuclear Core Medium Treads Thunder Leg VTOL Module Dynamic Insulation System Peak State ------------ > --- POWER ------------ Neutrino Core Micro Fission Core > --- PROPULSION ------- Armored Medium Treads Armored Medium Treads Armored Medium Treads Armored Medium Treads Armored Medium Treads > --- UTILITY ---------- Improved Heat Sink Improved Heat Sink Encrypted Comm Array Improved Target Analyzer Improved Target Analyzer Improved Utility Shielding Layered Light Armor Plating > --- WEAPON ----------- High-powered Shock Rifle Tesla Rifle Tesla Rifle > --- INVENTORY -------- Thunder Leg Improved Weapon Cycler Dynamic Insulation System Great Axe Power Sword [Rating: 89] Favorites ----------- Power Ion Engine Engine Ion Engine Power Core Light Nuclear Core Propulsion Light Treads Treads Light Treads Leg Carbon-fiber Leg Hover Unit Antigrav System Flight Unit VTOL Module Utility High-capacity Storage Unit Device Improved Heat Sink Storage High-capacity Storage Unit Processor Improved Target Analyzer Protection Layered Light Armor Plating Weapon Precision Shock Rifle Energy Gun Precision Shock Rifle Energy Cannon EM Pulse Cannon Ballistic Gun Autogun Launcher Proton Missile Launcher Impact Weapon Maul Slashing Weapon Power Sword Build | -11 -10 -9 -8 -7 -7 -7 -7 -6 -6 -6 -5 -5 -5 ------- Run | Yrd Mat Mat Mat Fac Low Low Dat Pro Fac DSF Fac Upp Upp Slots Evolved 10 | . . 2 2 2 . . . . 2 . 2 . . Power 1 | . . . 1 . . . . . . . . . . Propulsion 3 | . . 1 . 1 . . . . . . 1 . . Utility 5 | . . 1 1 . . . . . 2 . 1 . . Weapon 1 | . . . . 1 . . . . . . . . . Parts Attached 115 | 8 4 11 9 8 4 4 . 11 3 20 28 4 1 Power 17 | 1 . 1 1 . 1 2 . 2 1 5 3 . . Engine 9 | 1 . 1 . . . 2 . 2 . 3 . . . Core 8 | . . . 1 . 1 . . . 1 2 3 . . Reactor . | . . . . . . . . . . . . . . Propulsion 24 | 2 . 4 3 . . . . 3 . 3 8 . 1 Treads 16 | 2 . 4 3 . . . . . . 1 6 . . Leg 3 | . . . . . . . . 3 . . . . . Wheel . | . . . . . . . . . . . . . . Hover 2 | . . . . . . . . . . . 2 . . Flight 3 | . . . . . . . . . . 2 . . 1 Utility 37 | 2 2 3 4 3 2 1 . 3 2 2 11 2 . Device 23 | 1 1 2 2 3 . . . 3 2 1 6 2 . Storage 3 | 1 1 1 . . . . . . . . . . . Processor 3 | . . . . . 1 . . . . . 2 . . Hackware . | . . . . . . . . . . . . . . Protection 8 | . . . 2 . 1 1 . . . 1 3 . . Artifact . | . . . . . . . . . . . . . . Weapon 37 | 3 2 3 1 5 1 1 . 3 . 10 6 2 . Energy Gun 29 | 2 2 2 1 4 . 1 . 2 . 9 6 . . Energy Cannon 1 | . . . . . . . . 1 . . . . . Ballistic Gun 2 | 1 . . . . . . . . . . . 1 . Ballistic Cannon . | . . . . . . . . . . . . . . Launcher 2 | . . . . . 1 . . . . 1 . . . Special Weapon . | . . . . . . . . . . . . . . Impact Weapon 1 | . . 1 . . . . . . . . . . . Slashing Weapon 2 | . . . . 1 . . . . . . . 1 . Piercing Weapon . | . . . . . . . . . . . . . . Special Melee Weapon . | . . . . . . . . . . . . . . Unidentified Prototypes 3 | . . . 1 1 . . . . . 1 . . . Corrupted Parts 14 | . . . . . . . . 8 . 5 1 . . System Corruption 87 | . . . . . . . . 43 . 41 3 . . Parts Lost 74 | . 2 5 3 . 2 4 . 8 . 20 14 2 14 Power 10 | . 1 . . . . . . 1 . 5 1 . 2 Propulsion 16 | . . 1 . . . 1 . 3 . 3 4 . 4 Utility 21 | . . 2 1 . 2 1 . 1 . 4 5 . 5 Weapon 27 | . 1 2 2 . . 2 . 3 . 8 4 2 3 Highest Loss Streak 18 | . 1 4 2 . 1 2 . 8 . 18 5 2 8 To Critical Strikes 1 | . . . . . . . . . . . . . 1 Average Backups 11 | 1 6 5 13 16 18 18 18 16 13 6 4 4 4 Power 1 | . . . . . 1 2 2 2 3 1 . . 1 Propulsion . | . 1 . 2 1 1 . . . . . . 1 2 Utility 5 | . 2 1 3 9 9 10 10 9 6 3 . 1 1 Weapon 4 | 1 2 3 7 5 6 5 6 4 4 1 2 1 . Tool/Special . | . . . . . . . . . . . . . . Unused Backups 17 | . . . 5 4 . 2 . . . 2 . . 4 Power 1 | . . . . . . . . . . . . . 1 Propulsion 3 | . . . . . . . . . . . . . 3 Utility 3 | . . . . . . 1 . . . 2 . . . Weapon 10 | . . . 5 4 . 1 . . . . . . . Tool/Special . | . . . . . . . . . . . . . . Average Slot Usage (%) 87 | . 91 86 88 99 97 94 84 87 92 57 77 99 68 Engine 7 | . 5 6 9 7 7 9 15 14 8 3 5 . . Core 4 | . . . 4 7 7 4 . . 4 5 4 11 6 Treads 21 | . 28 32 27 30 30 27 23 16 . . 6 28 19 Leg 1 | . . . . . . . . 5 20 4 . . . Flight 1 | . . . . . . . . . . 3 5 . 2 Device 14 | . 14 15 13 14 15 4 . 6 32 19 21 17 10 Storage 5 | . 14 11 9 7 7 7 7 7 6 4 . . . Processor 4 | . . . . . 5 7 7 4 . . 6 11 11 Protection 5 | . . . 7 7 . 8 15 10 . . 2 11 3 Energy Gun 17 | . 28 21 18 21 20 20 15 16 20 13 15 9 . Peak Build Rating 89 | 7 7 16 27 42 40 45 38 50 57 57 88 89 86 Average Rating 43 | 5 6 10 20 38 37 40 38 41 56 36 70 86 56 On Entrance 37 | . 7 7 16 27 38 40 38 38 50 57 42 82 86 Avg Prop Armor Cover (%) 4 | . . . . . . . . 5 . . 4 . 1 Naked Turns . | . . . . . . . . . . . . . . Heaviest Build 79 | 15 25 53 73 79 67 72 68 74 78 76 44 44 39 Greatest Support 151 | 40 40 60 60 80 80 80 60 60 45 45 151 135 135 Greatest Overweight (x) 19 | . . 1 1 . . 1 1 16 1 19 4 . 1 Average Overweight (x) . | . . . . . . . 1 1 1 3 . . . Largest Inventory Capacity 20 | 8 15 20 20 20 20 20 20 20 20 20 5 5 5 Average Capacity 14 | 6 11 19 20 20 20 20 20 20 20 14 5 5 5 Most Carried 20 | 3 9 9 20 20 20 20 18 18 14 14 5 5 5 Average Carried 11 | 1 6 5 13 16 18 18 18 16 13 6 4 4 4 Final Capacity 20 | 8 15 20 20 20 20 20 20 20 20 5 5 5 5 Final Carried 18 | 3 9 9 15 18 18 18 18 15 14 5 5 5 5 Class Distribution -------------------- 24% | Scavenger-Mutant 20% | Scavenger-Tank 19% | Scavenger-Gunner 18% | Mutant 12% | Scavenger-Skirmisher Dominant Class ---------------- Mutant | -10/Materials Mutant | -9/Materials Scavenger-Mutant | -8/Materials Scavenger-Tank | -7/Factory Scavenger-Skirmisher | -7/Lower Caves Scavenger-Tank | -7/Lower Caves Scavenger-Mutant | -7/Data Miner Scavenger-Tank | -6/Proximity Caves Scavenger-Gunner | -6/Factory Scavenger-Gunner | -6/DSF Scavenger-Gunner | -5/Factory Scavenger-Mutant | -5/Upper Caves Scavenger-Mutant | -5/Upper Caves Resources | -11 -10 -9 -8 -7 -7 -7 -7 -6 -6 -6 -5 -5 -5 ----------- Run | Yrd Mat Mat Mat Fac Low Low Dat Pro Fac DSF Fac Upp Upp Matter Collected 1635 | 280 30 135 110 75 90 80 . 110 . 148 442 126 9 Remotely . | . . . . . . . . . . . . . . Salvage Created 4340 | 145 256 498 426 75 408 237 . 275 . 639 886 234 261 Parts 201 | 11 9 23 19 6 15 8 . 10 . 36 48 10 6 Haulers Intercepted 4 | . 1 2 1 . . . . . . . . . . Recyclers Shooed 1 | . . . . . . . . . . . 1 . . Parts Field Recycled . | . . . . . . . . . . . . . . Retrieved Matter . | . . . . . . . . . . . . . . Parts Self-Destructed 37 | . . . . . 6 13 . . . . . 6 12 Prevented 36 | . . . . . 12 3 . 10 . . . 11 . Parts Restored . | . . . . . . . . . . . . . . Kills | -11 -10 -9 -8 -7 -7 -7 -7 -6 -6 -6 -5 -5 -5 ------- Run | Yrd Mat Mat Mat Fac Low Low Dat Pro Fac DSF Fac Upp Upp Combat Hostiles Destroyed 69 | . 5 6 6 1 8 6 . 4 . 9 14 6 4 Melee 9 | . . . . . . . . . . . 5 . 4 Guns 35 | . 5 6 2 . 3 4 . 3 . 6 1 5 . Cannons 1 | . . . . . . . . 1 . . . . . AOE 10 | . . . 2 . 2 1 . . . 2 3 . . Classes Destroyed 13 | 2 2 3 . . 2 1 . . . 2 1 . . Tunneler 4 | 3 . 1 . . . . . . . . . . . Hauler 4 | . 1 2 1 . . . . . . . . . . Recycler 2 | 1 . . . . . . . . . . 1 . . Mechanic 1 | . . 1 . . . . . . . . . . . Watcher 2 | . . 1 1 . . . . . . . . . . Swarmer 19 | . . . . . 3 4 . . . 3 4 5 . Grunt 22 | . 5 5 4 . 3 1 . 3 . . . . 1 Duelist 5 | . . . . . 1 . . 1 . . . . 3 Sentry 11 | . . 1 2 1 1 . . . . . 5 1 . Specialist 3 | . . . . . . . . . . 3 . . . Hunter 3 | . . . . . . 1 . . . 2 . . . Programmer 5 | . . . . . . . . . . . 5 . . Heavy 1 | . . . . . . . . . . 1 . . . Best Kill Streak 5 | 4 2 2 4 1 4 3 . 3 . 4 5 5 2 Combat Bots Only 5 | . 2 2 4 1 4 3 . 3 . 4 4 5 2 Max Kills in Single Turn 2 | 1 1 1 2 1 1 1 . 1 . 2 2 1 1 Gunslinging 1 | . . . . . . . . . . 1 . . . Exploded 2 | . . . 2 . 1 1 . . . 2 2 . . Melee 1 | . . . . . . . . . . . 1 . 1 Uniques/NPCs Destroyed . | . . . . . . . . . . . . . . Combat | -11 -10 -9 -8 -7 -7 -7 -7 -6 -6 -6 -5 -5 -5 -------- Run | Yrd Mat Mat Mat Fac Low Low Dat Pro Fac DSF Fac Upp Upp Hostile Shots Fired 815 | . 52 53 31 27 41 43 . 31 . 180 103 45 209 Missed 226 | . 13 14 9 9 9 17 . 7 . 55 31 14 48 Hits 589 | . 39 39 22 18 32 26 . 24 . 125 72 31 161 Melee 24 | . . . . . 4 . . 4 . . . . 16 Projectile 565 | . 39 39 22 18 28 26 . 20 . 125 72 31 145 Critical Strikes 24 | . . 1 . . 2 1 . 2 . 5 6 . 7 Actively Blocked 1 | . . . . . . . . . . . . . 1 Part Disruptions 2 | . . . . . . . . . . 2 . . . Damage Taken 11050 | . 514 529 355 137 577 398 . 528 . 2754 1689 508 3061 Core 2115 | . 89 83 18 11 126 28 . 20 . 731 276 55 678 Absorbed by Shields 68 | . . . . . . . . . . 68 . . . Redirected to Shielding 192 | . . . . . . . . . . . 100 21 71 Core Remaining (%) 71 | 100 64 79 96 . . . . 73 . 14 . . . Volleys Fired 188 | 4 25 35 14 5 15 15 . 11 . 27 19 17 1 Largest 3 | 2 2 2 2 3 3 3 . 3 . 3 3 3 1 Hottest 213 | 100 100 90 90 165 165 165 . 173 . 213 195 190 23 Shots Fired 384 | 8 49 67 28 12 33 29 . 29 . 54 51 23 1 Gun 371 | 8 49 67 28 12 30 27 . 24 . 51 51 23 1 Cannon 5 | . . . . . . . . 5 . . . . . Launcher 8 | . . . . . 3 2 . . . 3 . . . Special . | . . . . . . . . . . . . . . Kinetic 1 | . . . . . . . . . . . . . 1 Thermal 132 | 8 49 45 . . . . . 2 . 28 . . . Explosive . | . . . . . . . . . . . . . . Electromagnetic 251 | . . 22 28 12 33 29 . 27 . 26 51 23 . Robot Hit Streak 37 | 5 8 18 37 8 34 7 . 10 . 13 9 3 3 Robot Miss Streak 4 | . 3 3 1 1 2 3 . 1 . 4 3 4 . Penetration Max . | . . . . . . . . . . . . . . Secondary Targets 2 | . . . . . . . . . . 2 . . . Max Gunslinging Chain 1 | . . . . . . . . . . 1 . . . Shots Hit Robots 306 | 5 32 54 25 8 30 17 . 21 . 37 51 12 14 Core Hits 147 | 5 13 21 20 2 11 9 . 11 . 20 22 7 6 Critical Kills . | . . . . . . . . . . . . . . Critical Parts Destroyed . | . . . . . . . . . . . . . . Critical Strikes 12 | . 3 1 . . . . . . . 1 3 2 2 Burn 5 | . 3 1 . . . . . . . 1 . . . Corrupt 3 | . . . . . . . . . . . 1 2 . Sever 4 | . . . . . . . . . . . 2 . 2 Melee Attacks 41 | . . . . 2 . . . . . . 20 . 19 Impact . | . . . . . . . . . . . . . . Slashing 41 | . . . . 2 . . . . . . 20 . 19 Piercing . | . . . . . . . . . . . . . . Sneak Attacks 1 | . . . . . . . . . . . 1 . . Combat Hostiles . | . . . . . . . . . . . . . . Follow-up Attacks 2 | . . . . . . . . . . . . . 2 Damage Inflicted 6649 | 63 402 701 508 169 600 347 . 406 . 1007 1660 331 455 Guns 4733 | 63 402 686 408 169 531 284 . 334 . 711 798 331 16 Cannons 72 | . . . . . . . . 72 . . . . . Explosions 858 | . . . 100 . 69 63 . . . 296 330 . . Melee 963 | . . . . . . . . . . . 527 . 436 Ramming 23 | . . 15 . . . . . . . . 5 . 3 Kinetic 16 | . . . . . . . . . . . . . 16 Thermal 1971 | 63 402 414 100 . 48 . . . . 614 330 . . Explosive . | . . . . . . . . . . . . . . Electromagnetic 3676 | . . 272 408 169 552 347 . 406 . 393 798 331 . Impact . | . . . . . . . . . . . . . . Slashing 963 | . . . . . . . . . . . 527 . 436 Piercing . | . . . . . . . . . . . . . . Highest Corruption 44 | . . . . . . . . 43 . 44 3 1 5 Average Corruption 11 | . . . . . . . . 35 . 25 1 1 3 Corruption Purged 5 | . . . . . . . . . . . 5 . . Corruption Blocked . | . . . . . . . . . . . . . . Effects 38 | . . . . . . . . 9 . 22 1 4 2 Message Errors 6 | . . . . . . . . 1 . 4 . 1 . Matter Fused 9 | . . . . . . . . 3 . 4 . 2 . Heat Flow Errors 6 | . . . . . . . . . . 5 . . 1 Energy Discharges 6 | . . . . . . . . 1 . 3 1 1 . Data Loss (minor) 4 | . . . . . . . . 2 . 2 . . . Data Loss (major) 1 | . . . . . . . . . . . . . 1 Misfires 3 | . . . . . . . . 2 . 1 . . . Alerts 1 | . . . . . . . . . . 1 . . . Misdirections 1 | . . . . . . . . . . 1 . . . Weapon Failures 1 | . . . . . . . . . . 1 . . . Overload Shots . | . . . . . . . . . . . . . . Overflow Damage 171 | . . . . . . . . . . . 171 . . Projectiles . | . . . . . . . . . . . . . . Explosions 151 | . . . . . . . . . . . 151 . . Melee 20 | . . . . . . . . . . . 20 . . Knockbacks . | . . . . . . . . . . . . . . Impact . | . . . . . . . . . . . . . . Kinetic . | . . . . . . . . . . . . . . Secondary . | . . . . . . . . . . . . . . Self-Inflicted Damage 297 | . . . . . 68 24 . . . 3 202 . . Shots 8 | . . . . . 3 1 . . . 1 3 . . Rammed 4 | . . 1 . . . . . . . . 1 . 2 Targets Rammed 4 | . . 1 . . . . . . . . 1 . 2 Kicked . | . . . . . . . . . . . . . . Crushed . | . . . . . . . . . . . . . . Highest Temperature 1365 | 39 220 61 21 87 325 327 . 446 . 1365 159 117 87 Average Temperature 121 | 20 72 21 10 39 129 148 . 190 . 201 49 39 64 Received Heat Transfer 1542 | . 267 279 162 42 108 27 . 198 . 99 135 18 207 Effects 19 | . . . . . 1 5 . 1 . 12 . . . Shutdowns 6 | . . . . . 1 1 . . . 4 . . . Energy Bleed 2 | . . . . . . . . 1 . 1 . . . Interference 7 | . . . . . . 4 . . . 3 . . . Matter Decay 1 | . . . . . . . . . . 1 . . . Damage (minor) 1 | . . . . . . . . . . 1 . . . Damage (core) 2 | . . . . . . . . . . 2 . . . Siege Activations . | . . . . . . . . . . . . . . Martial Activations . | . . . . . . . . . . . . . . Shielding Activations . | . . . . . . . . . . . . . . Robots Disrupted 1 | . . . . . 1 . . . . . . . . Combat Hostiles 1 | . . . . . 1 . . . . . . . . Robots Corrupted 14 | . . . 2 1 3 1 . . . 1 5 1 . Combat Hostiles 14 | . . . 2 1 3 1 . . . 1 5 1 . Parts Fried 26 | . . 2 2 . 6 1 . 2 . 3 7 3 . Impact Corruptions . | . . . . . . . . . . . . . . Robots Melted 1 | . 1 . . . . . . . . . . . . Combat Hostiles . | . . . . . . . . . . . . . . Parts Melted 7 | . 2 5 . . . . . . . . . . . Heat Transferred 4150 | 185 1395 1071 100 . 50 . . . . 1049 300 . . Parts Sabotaged . | . . . . . . . . . . . . . . Parts Stolen . | . . . . . . . . . . . . . . Parts Stripped . | . . . . . . . . . . . . . . Power Chain Reactions 4 | . . . 1 . 1 . . . . 1 1 . . Alert | -11 -10 -9 -8 -7 -7 -7 -7 -6 -6 -6 -5 -5 -5 ------- Run | Yrd Mat Mat Mat Fac Low Low Dat Pro Fac DSF Fac Upp Upp Maximum Alert Level 1 | . . . . . . . . . . . 1 . . Low Security (%) 98 | 100 100 100 100 100 . . . . 100 100 94 . . Level 1 1 | . . . . . . . . . . . 5 . . Level 2 . | . . . . . . . . . . . . . . Level 3 . | . . . . . . . . . . . . . . Level 4 . | . . . . . . . . . . . . . . Level 5 . | . . . . . . . . . . . . . . High Security . | . . . . . . . . . . . . . . Max Security . | . . . . . . . . . . . . . . Sterilizations 1 | . . . . . . . . . . 1 . . . Peak Influence 246 | 10 76 57 105 30 . . . . . 127 246 . . Initial 66 | . 3 . 24 . . . . . . 3 66 . . Average 31 | 2 29 8 44 2 . . . . . 53 51 . . Influence Increases 2164 | 20 193 213 179 63 195 140 . 105 5 267 544 145 95 Destroy 0b10 Robot/C 1380 | . 100 120 120 20 160 120 . 80 . 180 280 120 80 Destroy 0b10 Robot/NC 75 | 20 5 25 10 . . . . . . 10 5 . . Destroy Leader 312 | . 42 46 34 10 20 20 . 10 . 30 90 10 . Successful Hack 28 | . . 7 . 16 . . . . 5 . . . . Disable Machine 105 | . . . 15 15 . . . . . . 75 . . Destroy Structure 99 | . 1 . . 2 . . . . . 2 94 . . Lose Combat Pursuer 165 | . 45 15 . . 15 . . 15 . 45 . 15 15 Influence Decreases 2164 | 15 198 156 236 63 140 195 . 105 . 145 639 177 95 Entered New Map 122 | . 2 . 33 . . 11 . . . 2 61 13 . Time Decay 1425 | 15 176 136 183 63 130 166 . 54 . . 308 164 30 Lost Part 467 | . 20 20 20 . 10 18 . 51 . 143 120 . 65 Purge Threat 150 | . . . . . . . . . . . 150 . . Squads Dispatched 14 | . 3 3 . 2 . . . . . 2 3 . 1 Investigation 1 | . . . . . . . . . . . 1 . . Extermination 3 | . . . . 1 . . . . . . 2 . . Reinforcement 9 | . 3 3 . 1 . . . . . 2 . . . Assault 1 | . . . . . . . . . . . . . 1 Garrison . | . . . . . . . . . . . . . . Intercept . | . . . . . . . . . . . . . . Searches Triggered . | . . . . . . . . . . . . . . Construction Impeded . | . . . . . . . . . . . . . . Haulers Reinforced . | . . . . . . . . . . . . . . Active Scanning Responses . | . . . . . . . . . . . . . . Cargo Convoy Interrupts . | . . . . . . . . . . . . . . Stealth | -11 -10 -9 -8 -7 -7 -7 -7 -6 -6 -6 -5 -5 -5 --------- Run | Yrd Mat Mat Mat Fac Low Low Dat Pro Fac DSF Fac Upp Upp Distress Signals 2 | . 1 1 . . . . . . . . . . . Communications Jammed 1 | . . . . . . . . . . 1 . . . Distress Signals . | . . . . . . . . . . . . . . Times Spotted 109 | . 12 10 9 4 9 6 . 5 . 14 15 7 18 Peak Tracking Total 9 | . 4 5 4 1 4 4 . 4 . 4 4 5 9 Tactical Retreats 10 | . 2 1 . . 1 . . 1 . 3 . 1 1 Traps | -11 -10 -9 -8 -7 -7 -7 -7 -6 -6 -6 -5 -5 -5 ------- Run | Yrd Mat Mat Mat Fac Low Low Dat Pro Fac DSF Fac Upp Upp Traps Triggered 9 | . 2 . . . . . . . . 5 2 . . Indirectly 2 | . . . . . . . . . . 2 . . . Trap Hack Attempts . | . . . . . . . . . . . . . . Triggered . | . . . . . . . . . . . . . . Disarmed . | . . . . . . . . . . . . . . Reprogrammed . | . . . . . . . . . . . . . . Reused . | . . . . . . . . . . . . . . Traps Extracted . | . . . . . . . . . . . . . . Installed . | . . . . . . . . . . . . . . Triggered . | . . . . . . . . . . . . . . Machines | -11 -10 -9 -8 -7 -7 -7 -7 -6 -6 -6 -5 -5 -5 ---------- Run | Yrd Mat Mat Mat Fac Low Low Dat Pro Fac DSF Fac Upp Upp Machines Disabled 7 | . . . 1 1 . . . . . . 5 . . Max in Single Turn 3 | . . . 1 1 . . . . . . 3 . . Garrison Access 1 | . . . 1 . . . . . . . . . . Machines Repaired . | . . . . . . . . . . . . . . Machines Dismantled . | . . . . . . . . . . . . . . Machines Sabotaged . | . . . . . . . . . . . . . . Overloaded Fab Kills . | . . . . . . . . . . . . . . Hacking | -11 -10 -9 -8 -7 -7 -7 -7 -6 -6 -6 -5 -5 -5 --------- Run | Yrd Mat Mat Mat Fac Low Low Dat Pro Fac DSF Fac Upp Upp Machines Accessed 21 | . 1 5 2 3 . . 4 . 2 . 4 . . Terminals 12 | . 1 4 . 3 . . . . 1 . 3 . . Fabricators . | . . . . . . . . . . . . . . Repair Stations . | . . . . . . . . . . . . . . Recycling Units . | . . . . . . . . . . . . . . Scanalyzers 4 | . . 1 1 . . . . . 1 . 1 . . Garrison Access 1 | . . . 1 . . . . . . . . . . Total Hacks 68 | . 2 10 6 8 . . 32 . 3 . 7 . . Successful 45 | . . 3 6 1 . . 32 . 2 . 1 . . Failed 21 | . 2 6 . 7 . . . . . . 6 . . Catastrophic 9 | . 1 4 . 2 . . . . . . 2 . . Database Lockouts 2 | . . 1 . . . . . . 1 . . . . Manual 13 | . 2 7 . 4 . . . . . . . . . Terminals 23 | . 2 7 . 8 . . . . 1 . 5 . . Fabricators . | . . . . . . . . . . . . . . Repair Stations . | . . . . . . . . . . . . . . Recycling Units . | . . . . . . . . . . . . . . Scanalyzers 12 | . . 3 5 . . . . . 2 . 2 . . Garrison Access 1 | . . . 1 . . . . . . . . . . Terminal Hacks 36 | . . 1 . 1 . . 32 . 1 . 1 . . Record 11 | . . . . . . . 11 . . . . . . Part Schematic 13 | . . . . . . . 13 . . . . . . Robot Schematic 5 | . . . . . . . 5 . . . . . . Prototype ID Bank 3 | . . . . . . . 3 . . . . . . Open DSF 1 | . . . . . . . . . 1 . . . . Branch Access Points 1 | . . . . 1 . . . . . . . . . Unreport Threat 2 | . . 1 . . . . . . . . 1 . . Fabricator Hacks . | . . . . . . . . . . . . . . Repair Station Hacks . | . . . . . . . . . . . . . . Recycling Unit Hacks . | . . . . . . . . . . . . . . Scanalyzer 8 | . . 2 5 . . . . . 1 . . . . Insert Component 2 | . . . 2 . . . . . . . . . . Analyze 1 | . . . 1 . . . . . . . . . . Retrieve Study 5 | . . 2 2 . . . . . 1 . . . . Garrison Access Hacks 1 | . . . 1 . . . . . . . . . . Seal Access 1 | . . . 1 . . . . . . . . . . Unauthorized Hacks . | . . . . . . . . . . . . . . Terminals . | . . . . . . . . . . . . . . Fabricators . | . . . . . . . . . . . . . . Repair Stations . | . . . . . . . . . . . . . . Recycling Units . | . . . . . . . . . . . . . . Scanalyzers . | . . . . . . . . . . . . . . Garrison Access . | . . . . . . . . . . . . . . Data Cores Recovered . | . . . . . . . . . . . . . . Used . | . . . . . . . . . . . . . . Hacking Detections 15 | . 1 4 1 3 . . . . 2 . 4 . . Full Trace Events 2 | . 1 . . . . . . . . . 1 . . Feedback Events . | . . . . . . . . . . . . . . Feedback Blocked . | . . . . . . . . . . . . . . Robot Schematics Acquired 5 | . . . . . . . 5 . . . . . . Robots Built . | . . . . . . . . . . . . . . Authchips . | . . . . . . . . . . . . . . Time . | . . . . . . . . . . . . . . Total Robot Build Rating . | . . . . . . . . . . . . . . Part Schematics Acquired 14 | . . . 1 . . . 13 . . . . . . Parts Built . | . . . . . . . . . . . . . . Authchips . | . . . . . . . . . . . . . . Time . | . . . . . . . . . . . . . . Total Part Build Rating . | . . . . . . . . . . . . . . Part Studies Acquired 5 | . . 2 2 . . . . . 1 . . . . Parts Repaired . | . . . . . . . . . . . . . . Time . | . . . . . . . . . . . . . . Parts Recycled . | . . . . . . . . . . . . . . Recycled Matter . | . . . . . . . . . . . . . . Retrieved Matter . | . . . . . . . . . . . . . . Retrieved Components . | . . . . . . . . . . . . . . Parts Scanalyzed 1 | . . . 1 . . . . . . . . . . Part Schematics Acquired 1 | . . . 1 . . . . . . . . . . Parts Damaged 1 | . . . 1 . . . . . . . . . . Bothacking | -11 -10 -9 -8 -7 -7 -7 -7 -6 -6 -6 -5 -5 -5 ------------ Run | Yrd Mat Mat Mat Fac Low Low Dat Pro Fac DSF Fac Upp Upp Used RIF Installer . | . . . . . . . . . . . . . . Robots Hacked . | . . . . . . . . . . . . . . Non-combat . | . . . . . . . . . . . . . . Combat . | . . . . . . . . . . . . . . Robot Hacks Applied . | . . . . . . . . . . . . . . Relay Couplers Released . | . . . . . . . . . . . . . . Fabnet Peak Effective % . | . . . . . . . . . . . . . . Robots Rewired . | . . . . . . . . . . . . . . Allies Hacked . | . . . . . . . . . . . . . . Hacks Repelled . | . . . . . . . . . . . . . . Allies | -11 -10 -9 -8 -7 -7 -7 -7 -6 -6 -6 -5 -5 -5 -------- Run | Yrd Mat Mat Mat Fac Low Low Dat Pro Fac DSF Fac Upp Upp Total Allies 1 | . . . . . . . . . . . . . 1 Largest Group 1 | . . . . . . . . . . . . . 1 Highest-Rated Group 141 | . . . . . . . . . . . . . 141 Highest-Rated Ally 141 | . . . . . . . . . . . . . 141 Initial Warlord ECA Mod 9 | . . . . . . . . . . . 9 9 9 Total Orders . | . . . . . . . . . . . . . . Ally Attacks . | . . . . . . . . . . . . . . Total Damage . | . . . . . . . . . . . . . . Kills . | . . . . . . . . . . . . . . Allies Corrupted . | . . . . . . . . . . . . . . Allies Melted . | . . . . . . . . . . . . . . Intel | -11 -10 -9 -8 -7 -7 -7 -7 -6 -6 -6 -5 -5 -5 ------- Run | Yrd Mat Mat Mat Fac Low Low Dat Pro Fac DSF Fac Upp Upp Active Infowar (turns) 3389 | 12 411 291 96 450 932 459 . . 83 290 365 . . Sensors 1279 | . . . . 450 829 . . . . . . . . Terrain 196 | . . 100 96 . . . . . . . . . . Structural 2067 | . 286 186 . 204 932 459 . . . . . . . Seismic 324 | 12 125 187 . . . . . . . . . . . Jamming 738 | . . . . . . . . . 83 290 365 . . Robot Analysis Total . | . . . . . . . . . . . . . . Derelict Logs Recovered 4 | . . . . . . 2 . . . . . 2 . Drone Launches . | . . . . . . . . . . . . . . Drone Recoveries . | . . . . . . . . . . . . . . Exploration | -11 -10 -9 -8 -7 -7 -7 -7 -6 -6 -6 -5 -5 -5 ------------- Run | Yrd Mat Mat Mat Fac Low Low Dat Pro Fac DSF Fac Upp Upp Turns Passed 7343 | 119 412 551 441 692 932 689 166 837 84 494 1099 662 165 Spaces Moved 3267 | 57 183 220 192 379 380 364 84 343 43 98 491 347 86 Core 44 | 2 . . . . . . . 2 . 7 . . 33 Treads 2984 | 55 183 220 192 379 380 364 84 265 . 10 452 347 53 Legs 157 | . . . . . . . . 76 43 38 . . . Wheels . | . . . . . . . . . . . . . . Hover . | . . . . . . . . . . . . . . Flight 82 | . . . . . . . . . . 43 39 . . Fastest Speed 50 | 50 160 160 160 162 162 162 200 190 190 190 160 170 50 Average Speed 178 | 156 160 160 183 162 162 172 200 218 190 335 176 170 124 Slowest Speed 1000 | 160 160 200 216 162 162 200 200 850 190 1000 352 170 170 Overloaded Moves . | . . . . . . . . . . . . . . Propulsion Burnouts . | . . . . . . . . . . . . . . Robots Hopped . | . . . . . . . . . . . . . . Potential Cave-ins . | . . . . . . . . . . . . . . Cave-ins Triggered . | . . . . . . . . . . . . . . Exploration Rate (%) 35 | 4 30 32 21 11 55 62 69 46 2 82 13 49 24 Regions Visited 13 Branch Regions 6 Pre-discovered Areas 4 | . . . . . . 1 1 . . . . 2 . Known Exits Taken 5 | . . . . 1 1 1 1 . 1 . . . . Unknown Exits Taken 7 | 1 1 1 1 . . . . 1 . . 1 1 . Scrap Searched 4 | . . . . . 1 3 . . . . . . . Spaces Dug 2 | . . . . 2 . . . . . . . . . Terrain Destroyed 57 | . . . . 2 6 . . . . 2 47 . . Melee 2 | . . . . 2 . . . . . . . . . Projectile . | . . . . . . . . . . . . . . AOE 55 | . . . . . 6 . . . . 2 47 . . Terrain Rammed . | . . . . . . . . . . . . . . Walls Destroyed . | . . . . . . . . . . . . . . Machines Disabled . | . . . . . . . . . . . . . . Actions | -11 -10 -9 -8 -7 -7 -7 -7 -6 -6 -6 -5 -5 -5 --------- Run | Yrd Mat Mat Mat Fac Low Low Dat Pro Fac DSF Fac Upp Upp Total 4353 | 76 252 347 257 446 667 403 83 406 45 214 642 403 112 Wait 602 | 5 36 68 17 29 262 7 . 41 . 53 54 30 . Move 3254 | 56 182 219 191 378 379 363 83 342 42 97 490 346 86 Hop . | . . . . . . . . . . . . . . Pick Up 54 | 2 4 6 12 12 1 6 . . . . 7 3 1 Fast Attach 69 | 8 1 5 7 3 2 . . 7 . 10 23 1 2 Attach 38 | . 1 4 1 2 3 2 . 3 2 9 8 2 1 Detach 6 | 1 1 . 1 . 1 . . . . . 2 . . Swap 43 | . 2 5 3 5 4 4 . 2 1 4 10 3 . Drop 48 | . . 4 11 10 . 6 . . . 6 8 1 2 Fire 188 | 4 25 35 14 5 15 15 . 11 . 27 19 17 1 Melee 39 | . . . . 2 . . . . . . 20 . 17 Ram . | . . . . . . . . . . . . . . Kick . | . . . . . . . . . . . . . . Crush 4 | . . 1 . . . . . . . . 1 . 2 Escape Stasis 8 | . . . . . . . . . . 8 . . . Rewire . | . . . . . . . . . . . . . . Trap . | . . . . . . . . . . . . . . Miscellaneous . | . . . . . . . . . . . . . . Route ------- -11/Scrapyard -10/Materials -9/Materials (discovered 2 exits: *Mat / [*Min]) -8/Materials -7/Factory (discovered 2 exits: *Low x2) -7/Lower Caves -7/Lower Caves (discovered 2 exits: *Fac / *Dat) -7/Data Miner -6/Proximity Caves -6/Factory -6/DSF -5/Factory -5/Upper Caves -5/Upper Caves History --------- Turn | Location | Event 12 | -11/Scrapyard | Discovered new exit (range 15) 120 | -11/Scrapyard | Entered Materials 305 | -10/Materials | Build established: Mutant 519 | -10/Materials | Discovered new exit (range 9) 532 | -10/Materials | Entered another Materials area 532 | -9/Materials | Evolved 2 slots: Propulsion x1, Utility x1 548 | -9/Materials | Central database locked down 765 | -9/Materials | Lost 4 parts (1n2u1w) 905 | -9/Materials | Discovered new exit (range 16) 1079 | -9/Materials | Discovered new exit (range 3) 1083 | -9/Materials | Entered another Materials area 1083 | -8/Materials | Evolved 2 slots: Power x1, Utility x1 1497 | -8/Materials | Build established: Scavenger-Mutant 1509 | -8/Materials | Discovered new exit (range 5) 1524 | -8/Materials | Entered Factory 1524 | -7/Factory | Evolved 2 slots: Propulsion x1, Weapon x1 1825 | -7/Factory | Build established: Scavenger-Tank 1904 | -7/Factory | Identified exit to Lower Caves 2216 | -7/Factory | Entered Lower Caves 2418 | -7/Lower Caves | Attracted the attention of an 0b10 checkpoint 2545 | -7/Lower Caves | Encountered a Warlord checkpoint 2588 | -7/Lower Caves | Build established: Scavenger-Skirmisher 3065 | -7/Lower Caves | Discovered new exit (range 15) 3146 | -7/Lower Caves | Identified exit to Lower Caves 3148 | -7/Lower Caves | Entered another Lower Caves area 3225 | -7/Lower Caves | Discovered new exit (range 9) 3422 | -7/Lower Caves | Encountered a Warlord checkpoint 3430 | -7/Lower Caves | Build established: Scavenger-Tank 3801 | -7/Lower Caves | Discovered new exit (range 15) 3829 | -7/Lower Caves | Identified exit to Data Miner 3837 | -7/Lower Caves | Entered Data Miner 3837 | -7/Data Miner | Discovered new exit (range 6) 3875 | -7/Data Miner | Met Data Miner 3913 | -7/Data Miner | Learned location of Section 7 (-2) 3913 | -7/Data Miner | Acquired the access code to Warlord's prototype stash 3937 | -7/Data Miner | Build established: Scavenger-Mutant 3943 | -7/Data Miner | Received God Mode back door access code from Data Miner 4001 | -7/Data Miner | Identified exit to Proximity Caves 4003 | -7/Data Miner | Entered Proximity Caves 4334 | -6/Proximity Caves | Build established: Scavenger-Tank 4641 | -6/Proximity Caves | Lost 8 parts (1p3n1u3w) 4650 | -6/Proximity Caves | System corruption reached 10% 4690 | -6/Proximity Caves | System corruption reached 30% 4804 | -6/Proximity Caves | Discovered new exit (range 12) 4840 | -6/Proximity Caves | Entered Factory 4840 | -6/Factory | Evolved 2 slots: Utility x2 4880 | -6/Factory | Central database locked down 4924 | -6/Factory | Identified exit to DSF 4924 | -6/Factory | Entered DSF 4926 | -6/DSF | Build established: Scavenger-Gunner 4984 | -6/DSF | Additional patrols routed to DSF 5074 | -6/DSF | System corruption reached 10% 5136 | -6/DSF | Lost 18 parts (5p2n4u7w) 5191 | -6/DSF | System corruption reached 30% 5223 | -6/DSF | Core integrity fell below 50% 5253 | -6/DSF | Sterilization system engaged 5273 | -6/DSF | Ambient heat levels rising (+10) 5288 | -6/DSF | Ambient heat levels rising (+10) 5303 | -6/DSF | Ambient heat levels rising (+10) 5318 | -6/DSF | Ambient heat levels rising (+10) 5333 | -6/DSF | Ambient heat levels rising (+10) 5348 | -6/DSF | Ambient heat levels rising (+10) 5362 | -6/DSF | Discovered new exit (range 16) 5363 | -6/DSF | Ambient heat levels rising (+10) 5378 | -6/DSF | Ambient heat levels rising (+10) 5393 | -6/DSF | Ambient heat levels rising (+10) 5408 | -6/DSF | Ambient heat levels rising (+10) 5415 | -6/DSF | Core integrity fell below 20% 5418 | -6/DSF | Entered Factory 5418 | -5/Factory | Evolved 2 slots: Propulsion x1, Utility x1 5828 | -5/Factory | Lost 3 parts (1n2u) 6176 | -5/Factory | Lost 5 parts (1n2u2w) 6284 | -5/Factory | Lost 5 parts (1p2n1u1w) 6361 | -5/Factory | Discovered new exit (range 13) 6517 | -5/Factory | Entered Upper Caves 6546 | -5/Upper Caves | Attracted the attention of an 0b10 checkpoint 6597 | -5/Upper Caves | Met a Warlord Commander 6598 | -5/Upper Caves | Learned location of Warlord (-5) 6599 | -5/Upper Caves | Warlord Commander delivered Encrypted Comm Array 6610 | -5/Upper Caves | Found Encrypted Comm Array 6726 | -5/Upper Caves | Learned Factory stockpile data 7064 | -5/Upper Caves | Build established: Scavenger-Mutant 7152 | -5/Upper Caves | Discovered new exit (range 15) 7179 | -5/Upper Caves | Entered another Upper Caves area 7185 | -5/Upper Caves | Attracted the attention of an 0b10 outpost 7232 | -5/Upper Caves | Core integrity fell below 50% 7269 | -5/Upper Caves | Lost 5 parts (1p1n3u) 7331 | -5/Upper Caves | Core integrity fell below 20% 7344 | -5/Upper Caves | Destroyed by S-27 Virus with Autogun Last Messages --------------- 07307_ Slug penetrates Wall. 07308_ Slammed into S-27 Virus. 07314_ VTOL Module destroyed. 07317_ S-27 Virus destroyed. 07320_ Slammed into S-27 Virus. 07321_ Mic. Fission Core destroyed. 07324_ System corrupted: Substantial component data lost. 07324_ Arm. Medium Treads destroyed. 07326_ Autogun fries itself beyond repair. 07326_ Lgt. Nuclear Core fries itself beyond repair. 07326_ Critical hit (Destroy). 07326_ Arm. Medium Treads destroyed. A strange signal echoes through the caves. 07328_ Dropped Imp. Heat Sink. 07328_ Dropped Great Axe. 07329_ VTOL Module fries itself beyond repair. 07342_ Imp. Target Analyzer destroyed. Map ----- +----------------------------------------------------+ | ?????????????????????????????????????????????????? | | ?????????????????????????????????????????????????? | | ?????????????????????????????????????????????????? | | ????????????????????????????????????????###??????? | | ????????????????????????????????????????? ?????? | | ?????????????????????????????????????????? ????# | | ?????????????????????????????????????????## ???## | | ????????????????????????????????????????## ?## | | ????????????????????????????????????????# ## | | ?????????????????????????###???????? ????# | | ????????????????????????## ##??????# ?????# | | ???????????????????????## #??????# ??????# | | ???????????????????????# #??????? ###???## | | ???????????????????????# ##??????? #????# | | ??????????????????????## #????????? #????# | | ??????????????????????# #?????????# ##???# | | ??????????????????????# ss###?????### #???## | | ?????????????????????## ##???## #????## | | ????????????????????## ###?? ##????#%= | | ????????????????????# s #???# ##???## | | ????????????????????# s ##???# #????#" | | ????????????????????# s ###### #????## | | ????????????????????## ## ###### | | ?????????????????????# /Y % % | | ?????????????????????## g # | | ??????????????????????# @ ###### | | ??????????????????????# ## ##????? | | ??????????????????????# ###### #?????? | | ??????????????????????# #????# #?????? | | ??????????????????????# #????# ????? | | ??????????????????????# #????# ??? | | ??????????????????????## ????# #??? | | ???????????????????????# ????# #??? | | ???????????????????????# ??# #??? | | ???????????????????????# ??# #######??? | | ??????????????????????? #####?# ##????????? | | ??????????????????????? ??????# #?????????? | | ??????????????????????? ??????# ?????????? | | ??????????????????????? ???????# ??????????? | | ???????????????????????###???????????????????????? | | ?????????????????????????????????????????????????? | | ?????????????????????????????????????????????????? | | ?????????????????????????????????????????????????? | | ?????????????????????????????????????????????????? | | ?????????????????????????????????????????????????? | | ?????????????????????????????????????????????????? | | ?????????????????????????????????????????????????? | | ?????????????????????????????????????????????????? | | ?????????????????????????????????????????????????? | | ?????????????????????????????????????????????????? | +----------------------------------------------------+ Best States ------------- Heat Dissipation 82 Coolant Potential 130 Energy Generation 31 Energy Capacity 365 Matter Stores 300 Matter Capacity 300 Sight Range 16 Robot Scan Range 15 Terrain Scan Range 16 Terrain Scan Density 10 Jamming Range 12 EM Shielding 2 Armor Coverage 450 Resistance: EX 25 Resistance: EM 15 Propulsion Shielding 66 Utility Shielding 66 Weapon Cycling 20 Evasion (%) 50 Target Analysis 9 Recoil Reduction 5 Particle Charging 15 Item Schematics ----------------- EM Shotgun | -8/Materials | Scanalyzed Combat Drone Bay | -7/Data Miner | Free Lgt. Regenerative Plating | -7/Data Miner | Free Biomechanical Wings | -7/Data Miner | Free Gravity Neutralizer | -7/Data Miner | Free Com. Ion Cannon | -7/Data Miner | Free Arm. Medium Treads | -7/Data Miner | Free Imp. Component Analysis Suite | -7/Data Miner | Free Lrn. Proton Cannon | -7/Data Miner | Free Hvy. Flak Cannon | -7/Data Miner | Free Antigrav System | -7/Data Miner | Free Linear Gravjet | -7/Data Miner | Free Imp. Linear Gravjet | -7/Data Miner | Free Hardcell Cannon | -7/Data Miner | Free Robot Schematics ------------------ B-48 Gladiator | -7/Data Miner | Free A-15 Conveyor | -7/Data Miner | Free M-28 Smith | -7/Data Miner | Free L-41 Fighter | -7/Data Miner | Free E-15 Imp | -7/Data Miner | Free Fabricated ------------ Nothing Repaired ---------- Nothing Studied --------- Lgt. Treads | -9/Materials | Hacked Sml. Laser | -9/Materials | Hacked EM Shotgun | -8/Materials | Hacked Ion Engine | -8/Materials | Hacked Hvy. Laser | -6/Factory | Hacked Alien Tech Used ----------------- None Achievements -------------- None Challenges ------------ None Game ------ Seed CouplerComponentGutpuncher Manual? 0 Play Time 00:53:43 Cumulative 297.2 hours Start 2026.09.01 @ 17:13:37 End 2026.09.01 @ 20:31:08 Sessions 3 Manual Loads 0 Difficulty Rogue Special Mode None Game No. 374 Rogue 374 Adventurer 0 Explorer 0 Win Type - Total 8 Types 7/0/0/1/0/0/0/0/0/0 Lore% 81 Gallery% 68 Achievement% 56 Wizard Run 0 Options --------- Layout 2 ASCII 0 Keyboard 0 Movement Mouse Keybinds 0 Fullscreen 1 Font 24/Smallcaps Map View 50x44 Zoom Use 0% Tactical HUD 1 Map Filters NONE Filters NONE Steam 1 RUN: d36f4586-c4fa-48ac-a4aa-a1dad7291e9f